fUST/lending_fUST_20250708
["ID","MTS","AMOUNT","RATE_DAILY","PERIOD"]
[370381119,1751987470238,-911.11,0.00022191,2]
[370381120,1751987470249,-849.52,0.00022191,2]
[370381121,1751987470259,-1608.55,0.00022191,2]
[370381122,1751987470270,-512.35,0.00022191,2]
[370381123,1751987470280,-1680.8,0.00022191,2]
[370381124,1751987470292,-3263.91,0.00022191,2]
[370381125,1751987470303,-825.63,0.00022191,2]
[370381126,1751987470312,-1917.38,0.00022191,2]
[370381127,1751987470324,-460.0,0.00022191,2]
[370381128,1751987470334,-1349.37,0.00022191,2]
[370381129,1751987470345,-7169.81,0.00022191,2]
[370381130,1751987470355,-460.0,0.00022191,2]
[370381131,1751987470366,-764.25,0.00022191,2]
[370381132,1751987470375,-3212.24,0.00022191,2]
[370381133,1751987470385,-975.12,0.00022191,2]
[370381134,1751987470396,-3732.02,0.00022191,2]
[370381135,1751987470406,-460.0,0.00022191,2]
[370381136,1751987470416,-517.2,0.00022191,2]
[370381137,1751987470425,-1124.04,0.00022191,2]
[370381138,1751987470437,-151.0,0.00022202,5]
[370381139,1751987470447,-3000.0,0.00022212,2]
[370381140,1751987470457,-223.0315306,0.00022251,2]
[370381141,1751987470468,-151.0,0.00022281,7]
[370381142,1751987470479,-352.485808,0.00022284,4]
[370381143,1751987470490,-655.82805004,0.000223,2]
[370381144,1751987470499,-168.0,0.00022319,2]
[370381145,1751987470509,-1859.06530899,0.00022335,2]
[370381146,1751987470519,-3853.49006069,0.00022383,7]
[370381147,1751987470529,-284.67,0.00022396,2]
[370381148,1751987470538,-2000.0,0.000224,2]
[370381149,1751987470548,-2000.0,0.000224,2]
[370381150,1751987470558,-587.0,0.00022423,2]
[370381151,1751987470567,-800.0,0.00022454,2]
[370381152,1751987470577,-151.0,0.00022465,7]
[370381153,1751987470587,-151.0,0.00022465,7]
[370381154,1751987470598,-151.0,0.00022465,7]
[370381155,1751987470608,-151.0,0.00022465,7]
[370381156,1751987470619,-151.0,0.00022465,7]
[370381157,1751987470628,-226.582455,0.00022465,7]
[370381158,1751987470638,-411.498511,0.00022465,7]
[370381159,1751987470647,-217.819591,0.00022465,7]
[370381160,1751987470657,-411.498511,0.00022465,7]
[370381161,1751987470667,-217.819591,0.00022465,7]
[370381162,1751987470677,-151.0,0.00022465,7]
[370381163,1751987470686,-156.409,0.00022465,7]
[370381164,1751987470696,-156.409,0.00022465,7]
[370381165,1751987470706,-151.0,0.00022465,7]
[370381166,1751987470716,-292.692506,0.00022465,7]
[370381167,1751987470725,-292.692506,0.00022465,7]
[370381168,1751987470735,-520.37,0.00022465,2]
[370381169,1751987470894,-644.05,0.00022465,2]
[370381170,1751987470904,-460.0,0.00022465,2]
[370381171,1751987470914,-460.0,0.00022465,2]
[370381172,1751987470923,-151.0,0.00022465,7]
[370381173,1751987470932,-151.0,0.00022465,7]
[370381174,1751987470941,-151.0,0.00022465,7]
[370381175,1751987470951,-460.0,0.00022465,2]
[370381176,1751987470961,-590.3,0.00022465,2]
[370381177,1751987470970,-151.0,0.00022465,7]
[370381178,1751987470980,-460.0,0.00022465,2]
[370381179,1751987470990,-460.0,0.00022465,2]
[370381180,1751987470998,-571.79,0.00022465,2]
[370381181,1751987471008,-655.17,0.00022465,2]
[370381182,1751987471018,-460.0,0.00022465,2]
[370381183,1751987471028,-151.0,0.00022465,7]
[370381184,1751987471038,-151.0,0.00022465,7]
[370381185,1751987471047,-151.0,0.00022465,7]
[370381186,1751987471057,-1068.61,0.00022465,2]
[370381187,1751987471066,-990.47,0.00022465,2]
[370381188,1751987471076,-460.0,0.00022465,2]
[370381189,1751987471085,-529.08,0.00022465,2]
[370381190,1751987471094,-460.0,0.00022465,2]
[370381191,1751987471103,-1094.43,0.00022465,2]
[370381192,1751987471113,-460.0,0.00022465,2]
[370381193,1751987471123,-610.0,0.00022465,2]
[370381194,1751987471134,-460.0,0.00022465,2]
[370381195,1751987471143,-702.73,0.00022465,2]
[370381196,1751987471152,-460.0,0.00022465,2]
[370381197,1751987471163,-460.0,0.00022465,2]
[370381198,1751987471172,-460.0,0.00022465,2]
[370381199,1751987471185,-2535.92,0.00022465,2]
[370381200,1751987471194,-1117.62,0.00022465,2]
[370381201,1751987471204,-151.0,0.00022465,7]
[370381202,1751987471213,-460.0,0.00022465,2]
[370381203,1751987471224,-460.0,0.00022465,2]
[370381204,1751987471233,-204.294437,0.00022465,7]
[370381205,1751987471243,-489.06,0.00022465,2]
[370381206,1751987471255,-638.54,0.00022465,2]
[370381207,1751987471264,-204.294437,0.00022465,7]
[370381208,1751987471273,-460.0,0.00022465,2]
[370381209,1751987471284,-460.0,0.00022465,2]
[370381210,1751987471293,-906.56,0.00022465,2]
[370381211,1751987471304,-6605.47,0.00022465,2]
[370381212,1751987471315,-217.182618,0.00022465,7]
[370381213,1751987471324,-1836.51,0.00022465,2]
[370381214,1751987471334,-217.182618,0.00022465,7]
[370381215,1751987471344,-3531.13,0.00022465,2]
[370381216,1751987471355,-769.53,0.00022465,2]
[370381217,1751987471365,-4999.22,0.00022465,2]
[370381218,1751987471375,-460.0,0.00022465,2]
[370381219,1751987471385,-1438.66,0.00022465,2]
[370381220,1751987471395,-1029.02,0.00022465,2]
[370381221,1751987471406,-551.13,0.00022465,2]
[370381222,1751987471415,-3199.43,0.00022465,2]
[370381223,1751987471424,-1136.93,0.00022465,2]
[370381224,1751987471435,-151.0,0.00022465,7]
[370381225,1751987471444,-802.39,0.00022465,2]
[370381226,1751987471455,-1227.68,0.00022465,2]
[370381227,1751987471464,-2315.09,0.00022465,2]
[370381228,1751987471474,-460.0,0.00022465,2]
[370381229,1751987471484,-779.96,0.00022465,2]
[370381230,1751987471494,-768.26,0.00022465,2]
[370381231,1751987471504,-460.0,0.00022465,2]
[370381232,1751987471515,-1247.08,0.00022465,2]
[370381233,1751987471525,-814.03,0.00022465,2]
[370381234,1751987471534,-1458.11,0.00022465,2]
[370381235,1751987471543,-1873.14,0.00022465,2]
[370381236,1751987471553,-460.0,0.00022465,2]
[370381237,1751987471562,-503.68,0.00022465,2]
[370381238,1751987471571,-510.97,0.00022465,2]
[370381239,1751987471580,-1198.65,0.00022465,2]
[370381240,1751987471589,-460.0,0.00022465,2]
[370381241,1751987471599,-485.36,0.00022465,2]
[370381242,1751987471608,-460.0,0.00022465,2]
[370381243,1751987471617,-3642.47,0.00022465,2]
[370381244,1751987471627,-3488.24,0.00022465,2]
[370381245,1751987471636,-881.6,0.00022465,2]
[370381246,1751987471646,-460.0,0.00022465,2]
[370381247,1751987471655,-1190.04,0.00022465,2]
[370381248,1751987471665,-5308.08,0.00022465,2]
[370381249,1751987471673,-858.29,0.00022465,2]
[370381250,1751987471682,-460.0,0.00022465,2]
[370381251,1751987471693,-693.69,0.00022465,2]
[370381252,1751987471703,-889.03,0.00022465,2]
[370381253,1751987471712,-911.11,0.00022465,2]
[370381254,1751987471722,-849.52,0.00022465,2]
[370381255,1751987471731,-1608.55,0.00022465,2]
[370381256,1751987471741,-512.35,0.00022465,2]
[370381257,1751987471753,-1680.8,0.00022465,2]
[370381258,1751987471763,-3263.91,0.00022465,2]
[370381259,1751987471772,-825.63,0.00022465,2]
[370381260,1751987471782,-1917.38,0.00022465,2]
[370381261,1751987471791,-460.0,0.00022465,2]
[370381262,1751987471801,-1349.37,0.00022465,2]
[370381263,1751987471810,-7169.81,0.00022465,2]
[370381264,1751987471819,-460.0,0.00022465,2]
[370381265,1751987471829,-764.25,0.00022465,2]
[370381266,1751987471838,-3212.24,0.00022465,2]
[370381267,1751987471847,-975.12,0.00022465,2]
[370381268,1751987471856,-3732.02,0.00022465,2]
[370381269,1751987471865,-460.0,0.00022465,2]
[370381270,1751987471876,-517.2,0.00022465,2]
[370381271,1751987471885,-1124.04,0.00022465,2]
[370381272,1751987471895,-234.0,0.00022466,3]
[370381273,1751987471904,-300.0,0.00022466,2]
[370381274,1751987471914,-250.0,0.00022466,2]
[370381275,1751987471923,-1319.22748375,0.00022471,2]
[370381276,1751987471932,-151.0,0.00022472,5]
[370381277,1751987471941,-216077.40808523,0.0002249,7]
[370381278,1751987471950,-167.399411,0.0002249,2]
[370381279,1751987471960,-167.399411,0.0002249,2]
[370381280,1751987471969,-151.0,0.0002249,7]
[370381281,1751987471979,-405.481259,0.0002249,7]
[370381282,1751987471990,-405.481259,0.0002249,7]
[370381283,1751987471999,-151.0,0.0002249,7]
[370381284,1751987472008,-183.130598,0.0002249,7]
[370381285,1751987472018,-151.0,0.0002249,7]
[370381286,1751987472027,-178.153058,0.0002249,7]
[370381287,1751987472037,-151.0,0.0002249,7]
[370381288,1751987472046,-151.0,0.0002249,7]
[370381289,1751987472055,-151.0,0.0002249,7]
[370381290,1751987472064,-151.0,0.0002249,7]
[370381291,1751987472073,-151.0,0.0002249,7]
[370381292,1751987472082,-151.0,0.0002249,7]
[370381293,1751987472091,-151.0,0.0002249,7]
[370381294,1751987472100,-271.234835,0.0002249,7]
[370381295,1751987472110,-157.67525,0.0002249,7]
[370381296,1751987472119,-157.67525,0.0002249,7]
[370381297,1751987472129,-207.72812,0.0002249,7]
[370381298,1751987472138,-207.72812,0.0002249,7]
[370381299,1751987472147,-168.0,0.00022491,2]
[370381300,1751987472157,-1947.10931298,0.000225,15]
[370381301,1751987472166,-1005.26233944,0.000225,2]
[370381302,1751987472175,-848.40570879,0.000225,7]
[370381303,1751987472187,-153.0,0.00022521,2]
[370381304,1751987472196,-153.0,0.00022521,2]
[370381305,1751987472206,-153.0,0.00022521,2]
[370381306,1751987472215,-2065.56,0.00022523,4]
[370381307,1751987472226,-3853.49006069,0.0002259,7]
[370381308,1751987472234,-161.78728743,0.000226,7]
[370381309,1751987472243,-337.695128,0.00022603,2]
[370381310,1751987472254,-400.36983657,0.00022603,2]
[370381311,1751987472264,-2065.56,0.00022623,6]
[370381312,1751987472274,-168.0,0.00022632,2]
[370381313,1751987472284,-1728.959433,0.0002268,5]
[370381314,1751987472294,-2000.0,0.000227,2]
[370381315,1751987472304,-1000.0,0.000227,5]
[370381316,1751987472313,-1000.0,0.000227,2]
[370381317,1751987472322,-188.794197,0.000227,2]
[370381318,1751987472333,-2065.56,0.00022723,2]
[370381319,1751987472342,-151.0,0.00022739,7]
[370381320,1751987472353,-151.0,0.00022739,7]
[370381321,1751987472363,-151.0,0.00022739,7]
[370381322,1751987472372,-168.467493,0.00022739,7]
[370381323,1751987472381,-151.0,0.00022739,7]
[370381324,1751987472390,-151.0,0.00022739,7]
[370381325,1751987472400,-520.37,0.00022739,2]
[370381326,1751987472410,-644.05,0.00022739,2]
[370381327,1751987472420,-460.0,0.00022739,2]
[370381328,1751987472429,-151.0,0.00022739,7]
[370381329,1751987472439,-151.0,0.00022739,7]
[370381330,1751987472448,-151.0,0.00022739,7]
[370381331,1751987472457,-460.0,0.00022739,2]
[370381332,1751987472466,-590.3,0.00022739,2]
[370381333,1751987472476,-151.0,0.00022739,7]
[370381334,1751987472485,-460.0,0.00022739,2]
[370381335,1751987472494,-460.0,0.00022739,2]
[370381336,1751987472503,-571.79,0.00022739,2]
[370381337,1751987472512,-655.17,0.00022739,2]
[370381338,1751987472521,-460.0,0.00022739,2]
[370381339,1751987472531,-151.0,0.00022739,7]
[370381340,1751987472540,-151.0,0.00022739,7]
[370381341,1751987472549,-151.0,0.00022739,7]
[370381342,1751987472559,-1068.61,0.00022739,2]
[370381343,1751987472568,-990.47,0.00022739,2]
[370381344,1751987472578,-259.29,0.00022739,2]
[370381345,1751987472587,-529.08,0.00022739,2]
[370381346,1751987472597,-460.0,0.00022739,2]
[370381347,1751987472606,-1094.43,0.00022739,2]
[370381348,1751987472616,-460.0,0.00022739,2]
[370381349,1751987472626,-610.0,0.00022739,2]
[370381350,1751987472636,-210.44575787,0.00022739,2]
[370381351,1751987472646,-702.73,0.00022739,2]
[370381352,1751987472655,-460.0,0.00022739,2]
[370381353,1751987472664,-460.0,0.00022739,2]
[370381354,1751987472674,-460.0,0.00022739,2]
[370381355,1751987472683,-2535.92,0.00022739,2]
[370381356,1751987472693,-1117.62,0.00022739,2]
[370381357,1751987472703,-151.0,0.00022739,7]
[370381358,1751987472712,-460.0,0.00022739,2]
[370381359,1751987472722,-460.0,0.00022739,2]
[370381360,1751987472731,-204.294437,0.00022739,7]
[370381361,1751987472740,-489.06,0.00022739,2]
[370381362,1751987472749,-638.54,0.00022739,2]
[370381363,1751987472758,-204.294437,0.00022739,7]
[370381364,1751987472767,-460.0,0.00022739,2]
[370381365,1751987472776,-460.0,0.00022739,2]
[370381366,1751987472785,-906.56,0.00022739,2]
[370381367,1751987472794,-6605.47,0.00022739,2]
[370381368,1751987472803,-217.182618,0.00022739,7]
[370381369,1751987472812,-1836.51,0.00022739,2]
[370381370,1751987472822,-217.182618,0.00022739,7]
[370381371,1751987472831,-3531.13,0.00022739,2]
[370381372,1751987472840,-769.53,0.00022739,2]
[370381373,1751987472850,-4999.22,0.00022739,2]
[370381374,1751987472860,-460.0,0.00022739,2]
[370381375,1751987472869,-1438.66,0.00022739,2]
[370381376,1751987472879,-1029.02,0.00022739,2]
[370381377,1751987472889,-551.13,0.00022739,2]
[370381378,1751987472898,-3199.43,0.00022739,2]
[370381379,1751987472908,-1136.93,0.00022739,2]
[370381380,1751987472917,-151.0,0.00022739,7]
[370381381,1751987472926,-802.39,0.00022739,2]
[370381382,1751987472935,-1227.68,0.00022739,2]
[370381383,1751987472944,-2315.09,0.00022739,2]
[370381384,1751987472954,-460.0,0.00022739,2]
[370381385,1751987472963,-779.96,0.00022739,2]
[370381386,1751987472972,-768.26,0.00022739,2]
[370381387,1751987472982,-460.0,0.00022739,2]
[370381388,1751987472993,-1247.08,0.00022739,2]
[370381389,1751987473002,-814.03,0.00022739,2]
[370381390,1751987473013,-1458.11,0.00022739,2]
[370381391,1751987473023,-1873.14,0.00022739,2]
[370381392,1751987473033,-460.0,0.00022739,2]
[370381393,1751987473043,-503.68,0.00022739,2]
[370381394,1751987473052,-510.97,0.00022739,2]
[370381395,1751987473063,-460.0,0.00022739,2]
[370381396,1751987473073,-1198.65,0.00022739,2]
[370381397,1751987473083,-485.36,0.00022739,2]
[370381398,1751987473092,-460.0,0.00022739,2]
[370381399,1751987473102,-3488.24,0.00022739,2]
[370381400,1751987473112,-3642.47,0.00022739,2]
[370381401,1751987473122,-881.6,0.00022739,2]
[370381402,1751987473131,-460.0,0.00022739,2]
[370381403,1751987473141,-1190.04,0.00022739,2]
[370381404,1751987473151,-5308.08,0.00022739,2]
[370381405,1751987473160,-858.29,0.00022739,2]
[370381406,1751987473169,-460.0,0.00022739,2]
[370381407,1751987473181,-693.69,0.00022739,2]
[370381408,1751987473190,-889.03,0.00022739,2]
[370381409,1751987473199,-911.11,0.00022739,2]
[370381410,1751987473209,-849.52,0.00022739,2]
[370381411,1751987473219,-1608.55,0.00022739,2]
[370381412,1751987473228,-512.35,0.00022739,2]
[370381413,1751987473238,-1680.8,0.00022739,2]
[370381414,1751987473248,-3263.91,0.00022739,2]
[370381415,1751987473258,-825.63,0.00022739,2]
[370381416,1751987473266,-1917.38,0.00022739,2]
[370381417,1751987473276,-460.0,0.00022739,2]
[370381418,1751987473285,-1349.37,0.00022739,2]
[370381419,1751987473294,-7169.81,0.00022739,2]
[370381420,1751987473303,-460.0,0.00022739,2]
[370381421,1751987473313,-3212.24,0.00022739,2]
[370381422,1751987473322,-764.25,0.00022739,2]
[370381423,1751987473331,-975.12,0.00022739,2]
[370381424,1751987473341,-3732.02,0.00022739,2]
[370381425,1751987473351,-460.0,0.00022739,2]
[370381426,1751987473361,-517.2,0.00022739,2]
[370381427,1751987473373,-1124.04,0.00022739,2]
[370381428,1751987473383,-151.0,0.00022743,6]
[370381429,1751987473392,-168.0,0.00022754,2]
[370381430,1751987473402,-168.0,0.00022758,2]
[370381431,1751987473411,-504.04681044,0.0002276,2]
[370381432,1751987473420,-3853.49006069,0.00022797,7]
[370381433,1751987473429,-177.7959578,0.00022822,2]
[370381434,1751987473438,-153.0,0.00022822,2]
[370381435,1751987473447,-2065.56,0.00022823,3]
[370381436,1751987473456,-156.409,0.00022859,7]
[370381437,1751987473465,-156.409,0.00022859,7]
[370381438,1751987473475,-151.0,0.00022859,7]
[370381439,1751987473484,-160.0,0.00022873,3]
[370381440,1751987473493,-160.0,0.00022873,5]
[370381441,1751987473502,-160.0,0.00022873,5]
[370381442,1751987473511,-168.0,0.00022884,2]
[370381443,1751987473520,-2065.56,0.00022923,6]
[370381444,1751987473529,-1000.0,0.00023,2]
[370381446,1751987473678,-840.0,0.00023,2]
[370381447,1751987473688,-200.0,0.00023,2]
[370381448,1751987473698,-837.89306043,0.00023,3]
[370381449,1751987473708,-230.51100374,0.00023,3]
[370381450,1751987473717,-160.0,0.00023,3]
[370381451,1751987473727,-215.2437778,0.00023,3]
[370381452,1751987473739,-3853.49006069,0.00023003,8]
[370381453,1751987473748,-411.498511,0.00023004,7]
[370381454,1751987473758,-411.498511,0.00023004,7]
[370381455,1751987473767,-151.0,0.00023013,7]
[370381456,1751987473777,-151.0,0.00023013,7]
[370381457,1751987473787,-151.0,0.00023013,7]
[370381458,1751987473796,-217.819591,0.00023013,7]
[370381459,1751987473806,-217.819591,0.00023013,7]
[370381460,1751987473815,-151.0,0.00023013,7]
[370381461,1751987473825,-292.692506,0.00023013,7]
[370381462,1751987473834,-292.692506,0.00023013,7]
[370381463,1751987473844,-520.37,0.00023013,2]
[370381464,1751987473853,-644.05,0.00023013,2]
[370381465,1751987473863,-460.0,0.00023013,2]
[370381466,1751987473873,-460.0,0.00023013,2]
[370381467,1751987473883,-590.3,0.00023013,2]
[370381468,1751987473893,-460.0,0.00023013,2]
[370381469,1751987473903,-460.0,0.00023013,2]
[370381470,1751987473912,-571.79,0.00023013,2]
[370381471,1751987473922,-655.17,0.00023013,2]
[370381472,1751987473932,-460.0,0.00023013,2]
[370381473,1751987473942,-1068.61,0.00023013,2]
[370381474,1751987473952,-990.47,0.00023013,2]
[370381475,1751987473961,-529.08,0.00023013,2]
[370381476,1751987473970,-460.0,0.00023013,2]
[370381477,1751987473980,-1094.43,0.00023013,2]
[370381478,1751987473990,-363.11021245,0.00023013,2]
[370381479,1751987473999,-610.0,0.00023013,2]
[370381480,1751987474009,-702.73,0.00023013,2]
[370381481,1751987474019,-460.0,0.00023013,2]
[370381482,1751987474028,-186.27886792,0.00023013,2]
[370381483,1751987474037,-151.0,0.00023013,6]
[370381484,1751987474047,-460.0,0.00023013,2]
[370381485,1751987474056,-2535.92,0.00023013,2]
[370381486,1751987474066,-1117.62,0.00023013,2]
[370381487,1751987474075,-460.0,0.00023013,2]
[370381488,1751987474085,-460.0,0.00023013,2]
[370381489,1751987474094,-489.06,0.00023013,2]
[370381490,1751987474103,-638.54,0.00023013,2]
[370381491,1751987474112,-460.0,0.00023013,2]
[370381492,1751987474122,-291.12730976,0.00023013,2]
[370381493,1751987474131,-906.56,0.00023013,2]
[370381494,1751987474140,-6605.47,0.00023013,2]
[370381495,1751987474149,-1836.51,0.00023013,2]
[370381496,1751987474159,-3531.13,0.00023013,2]
[370381497,1751987474168,-769.53,0.00023013,2]
[370381498,1751987474181,-4999.22,0.00023013,2]
[370381499,1751987474191,-460.0,0.00023013,2]
[370381500,1751987474200,-1438.66,0.00023013,2]
[370381501,1751987474210,-1029.02,0.00023013,2]
[370381502,1751987474221,-551.13,0.00023013,2]
[370381503,1751987474231,-3199.43,0.00023013,2]
[370381504,1751987474240,-1136.93,0.00023013,2]
[370381505,1751987474251,-802.39,0.00023013,2]
[370381506,1751987474260,-1227.68,0.00023013,2]
[370381507,1751987474269,-460.0,0.00023013,2]
[370381508,1751987474279,-2315.09,0.00023013,2]
[370381509,1751987474288,-779.96,0.00023013,2]
[370381510,1751987474298,-768.26,0.00023013,2]
[370381511,1751987474310,-460.0,0.00023013,2]
[370381512,1751987474320,-1247.08,0.00023013,2]
[370381513,1751987474331,-814.03,0.00023013,2]
[370381514,1751987474342,-1458.11,0.00023013,2]
[370381515,1751987474352,-1873.14,0.00023013,2]
[370381516,1751987474362,-460.0,0.00023013,2]
[370381517,1751987474372,-503.68,0.00023013,2]
[370381518,1751987474381,-510.97,0.00023013,2]
[370381519,1751987474391,-460.0,0.00023013,2]
[370381520,1751987474401,-1198.65,0.00023013,2]
[370381521,1751987474410,-485.36,0.00023013,2]
[370381522,1751987474420,-319.17938685,0.00023013,2]
[370381523,1751987474431,-3642.47,0.00023013,2]
[370381524,1751987474440,-3488.24,0.00023013,2]
[370381525,1751987474450,-881.6,0.00023013,2]
[370381526,1751987474460,-460.0,0.00023013,2]
[370381527,1751987474471,-1190.04,0.00023013,2]
[370381528,1751987474481,-5308.08,0.00023013,2]
[370381529,1751987474491,-858.29,0.00023013,2]
[370381530,1751987474501,-460.0,0.00023013,2]
[370381531,1751987474511,-693.69,0.00023013,2]
[370381532,1751987474520,-889.03,0.00023013,2]
[370381533,1751987474530,-911.11,0.00023013,2]
[370381534,1751987474539,-849.52,0.00023013,2]
[370381535,1751987474548,-1608.55,0.00023013,2]
[370381536,1751987474558,-512.35,0.00023013,2]
[370381537,1751987474567,-1680.8,0.00023013,2]
[370381538,1751987474577,-3263.91,0.00023013,2]
[370381539,1751987474586,-825.63,0.00023013,2]
[370381540,1751987474595,-1917.38,0.00023013,2]
[370381541,1751987474604,-460.0,0.00023013,2]
[370381542,1751987474613,-1349.37,0.00023013,2]
[370381543,1751987474622,-7169.81,0.00023013,2]
[370381544,1751987474632,-460.0,0.00023013,2]
[370381545,1751987474641,-3212.24,0.00023013,2]
[370381546,1751987474650,-764.25,0.00023013,2]
[370381547,1751987474660,-975.12,0.00023013,2]
[370381548,1751987474669,-3732.02,0.00023013,2]
[370381549,1751987474678,-460.0,0.00023013,2]
[370381550,1751987474688,-517.2,0.00023013,2]
[370381551,1751987474697,-1124.04,0.00023013,2]
[370381552,1751987474707,-450.0,0.00023014,2]
[370381553,1751987474716,-150.0,0.00023014,7]
[370381554,1751987474726,-350.0,0.00023014,2]
[370381555,1751987474735,-2065.56,0.00023023,4]
[370381556,1751987474744,-168.0,0.00023041,2]
[370381557,1751987474754,-2065.56,0.00023123,4]
[370381558,1751987474763,-150.0,0.00023174,2]
[370381559,1751987474773,-967.0,0.00023174,2]
[370381560,1751987474783,-646.0,0.00023174,2]
[370381561,1751987474792,-2153.0,0.00023174,2]
[370381562,1751987474802,-10000.0,0.000232,10]
[370381563,1751987474812,-160.0,0.000232,10]
[370381564,1751987474822,-848.40570879,0.000232,10]
[370381565,1751987474831,-3853.49006069,0.0002321,8]
[370381566,1751987474840,-2065.56,0.00023223,6]
[370381567,1751987474850,-151.0,0.00023287,7]
[370381568,1751987474860,-204.102071,0.00023287,7]
[370381569,1751987474869,-204.102071,0.00023287,7]
[370381570,1751987474880,-151.0,0.00023287,7]
[370381571,1751987474890,-151.0,0.00023287,7]
[370381572,1751987474900,-151.0,0.00023287,7]
[370381573,1751987474909,-151.0,0.00023287,7]
[370381574,1751987474919,-151.0,0.00023287,7]
[370381575,1751987474928,-520.37,0.00023287,2]
[370381576,1751987474938,-644.05,0.00023287,2]
[370381577,1751987474948,-166.912252,0.00023287,7]
[370381578,1751987474958,-460.0,0.00023287,2]
[370381579,1751987474967,-151.0,0.00023287,7]
[370381580,1751987474977,-151.0,0.00023287,7]
[370381581,1751987474986,-151.0,0.00023287,7]
[370381582,1751987474996,-157.67525,0.00023287,7]
[370381583,1751987475006,-157.67525,0.00023287,7]
[370381584,1751987475016,-460.0,0.00023287,2]
[370381585,1751987475025,-590.3,0.00023287,2]
[370381586,1751987475036,-460.0,0.00023287,2]
[370381587,1751987475045,-460.0,0.00023287,2]
[370381588,1751987475055,-571.79,0.00023287,2]
[370381589,1751987475065,-655.17,0.00023287,2]
[370381590,1751987475074,-460.0,0.00023287,2]
[370381591,1751987475083,-1068.61,0.00023287,2]
[370381592,1751987475093,-990.47,0.00023287,2]
[370381593,1751987475102,-529.08,0.00023287,2]
[370381594,1751987475111,-445.95522842,0.00023287,2]
[370381595,1751987475121,-1094.43,0.00023287,2]
[370381596,1751987475130,-610.0,0.00023287,2]
[370381597,1751987475139,-702.73,0.00023287,2]
[370381598,1751987475149,-460.0,0.00023287,2]
[370381599,1751987475158,-460.0,0.00023287,2]
[370381600,1751987475167,-2535.92,0.00023287,2]
[370381601,1751987475179,-1117.62,0.00023287,2]
[370381602,1751987475188,-460.0,0.00023287,2]
[370381603,1751987475197,-460.0,0.00023287,2]
[370381604,1751987475207,-489.06,0.00023287,2]
[370381605,1751987475217,-638.54,0.00023287,2]
[370381606,1751987475227,-460.0,0.00023287,2]
[370381607,1751987475236,-906.56,0.00023287,2]
[370381608,1751987475246,-6605.47,0.00023287,2]
[370381609,1751987475257,-1836.51,0.00023287,2]
[370381610,1751987475266,-3531.13,0.00023287,2]
[370381611,1751987475276,-769.53,0.00023287,2]
[370381612,1751987475285,-4999.22,0.00023287,2]
[370381613,1751987475295,-415.96924658,0.00023287,2]
[370381614,1751987475305,-1438.66,0.00023287,2]
[370381615,1751987475314,-1029.02,0.00023287,2]
[370381616,1751987475323,-551.13,0.00023287,2]
[370381617,1751987475333,-3199.43,0.00023287,2]
[370381618,1751987475343,-1136.93,0.00023287,2]
[370381619,1751987475352,-802.39,0.00023287,2]